bitfinex-derivatives/quotes_ETHF0:USTF0_20250430
["timestamp","ask_amount","ask_price","bid_price","bid_amount"]
[1745972271378,3.55784,1804.4,1804.3,1.10818]
[1745972271575,9.6145,1804.8,1804.3,3.2078]
[1745972271780,1.10805,1804.6,1804.5,1.10803]
[1745972271973,1.10805,1804.6,1804.5,2.73453]
[1745972272281,2.72405,1804.6,1804.5,2.73453]
[1745972272880,2.72405,1804.6,1804.5,2.73456]
[1745972273683,0.8159,1804.7,1804.6,1.108]
[1745972273871,1.92384,1804.7,1804.6,2.7345]
[1745972274272,3.53984,1804.7,1804.6,2.7345]
[1745972277379,2.4319,1804.7,1804.6,2.7345]
[1745972277580,5.59521,1804.8,1804.7,1.10794]
[1745972277780,5.59521,1804.8,1804.7,2.81984]
[1745972277981,4.74491,1804.8,1804.7,2.81984]
[1745972278380,6.74266,1804.9,1804.8,1.10787]
[1745972278577,6.74266,1804.9,1804.8,1.7119]
[1745972278780,1.10787,1804.8,1804.7,1.91849]
[1745972279081,2.70437,1804.8,1804.7,1.91849]
[1745972280171,2.70437,1804.8,1804.7,0.8106]
[1745972280576,3.52577,1804.8,1804.7,0.8106]
[1745972280772,1.10794,1804.7,1804.6,1.10795]
[1745972280977,1.108,1804.6,1804.5,3.2078]
[1745972281682,5.97789,1804.6,1804.2,2.734]
[1745972281880,1.10818,1804.3,1804.2,1.1082]
[1745972282281,8.87906,1804.5,1804.3,1.10818]
[1745972282282,2.76815,1804.4,1804.3,1.10818]
[1745972285581,1.10818,1804.3,1804.2,2.734]
[1745972285788,1.10818,1804.3,1804.1,3.2078]
[1745972285789,1.10824,1804.2,1804.1,4.31605]
[1745972286086,1.10824,1804.2,1804.1,4.3161]
[1745972286386,1.92164,1804.2,1804.1,4.3161]
[1745972288291,1.92164,1804.2,1804.1,5.9524]
[1745972289086,1.10824,1804.2,1804.1,5.9524]
[1745972289584,1.10824,1804.2,1804.1,4.3161]
[1745972289787,1.10849,1803.8,1803.7,3.2078]
[1745972290087,2.77138,1803.7,1803.3,1.10873]
[1745972290389,1.10872,1803.5,1803.4,1.10871]
[1745972290595,1.10882,1803.3,1803.2,1.1088]
[1745972290895,1.10882,1803.3,1803.1,21.27617157]
[1745972290896,1.10886,1803.2,1803.1,13.25556051]
[1745972291192,2.80576,1803.2,1803.1,13.25556051]
[1745972291490,1.6969,1803.2,1803.1,13.25556051]
[1745972292591,1.6969,1803.2,1803.1,13.7023492]
[1745972292794,1.6969,1803.2,1803.1,13.25556051]
[1745972292991,2.80576,1803.2,1803.1,11.55546051]
[1745972293193,2.80576,1803.2,1803.1,3.2078]
[1745972293692,2.80576,1803.2,1803.1,4.31672]
[1745972297295,1.10892,1803.1,1803.0,2.70624]
[1745972297497,2.80152,1803.1,1803.0,2.70624]
[1745972298096,2.80152,1803.1,1803.0,1.10894]
[1745972298292,2.80152,1803.1,1802.9,3.2078]
[1745972298293,8.5493,1803.3,1802.9,7.55318]
[1745972298494,3.3961,1803.3,1803.2,1.10886]
[1745972298697,4.5049,1803.3,1803.2,1.10886]
[1745972299494,12.14793,1803.3,1803.0,1.741]
[1745972299703,1.10908,1802.9,1802.8,1.10906]
[1745972299895,1.1091,1802.8,1802.7,4.31691]
[1745972300097,1.1091,1802.8,1802.7,6.05791]
[1745972300705,1.10909,1802.9,1802.8,1.10907]
[1745972301001,1.1091,1802.8,1802.7,6.05792]
[1745972301191,2.7742,1802.8,1802.7,6.05792]
[1745972301393,1.6651,1802.8,1802.7,6.05792]
[1745972304392,0.8343,1803.3,1802.9,2.77261]
[1745972304594,1.10894,1803.1,1803.0,1.10892]
[1745972305100,1.10904,1802.9,1802.8,7.00458163]
[1745972305300,1.10904,1802.9,1802.8,1.10905]
[1745972305501,2.75213,1803.0,1802.9,1.10904]
[1745972311699,2.75213,1803.0,1802.8,1.718]
[1745972311700,1.10904,1802.9,1802.8,1.718]
[1745972311909,2.77277,1802.8,1802.6,1.10919]
[1745972312204,2.77277,1802.8,1802.3,3.2078]
[1745972312205,2.77319,1802.6,1802.3,3.2078]
[1745972312399,2.81964,1802.5,1802.2,8.11528]
[1745972312605,2.81964,1802.5,1802.4,1.10935]
[1745972314099,2.81964,1802.5,1802.4,2.81505]
[1745972314301,1.10928,1802.6,1802.5,1.10923]
[1745972314501,6.02678,1802.7,1802.6,1.10923]
[1745972314705,2.81898,1802.7,1802.6,1.94623]
[1745972317413,2.81898,1802.7,1802.6,1.10923]
[1745972317709,1.10923,1802.6,1802.5,2.72724]
[1745972317914,1.10929,1802.5,1802.4,4.31711]
[1745972318098,1.10929,1802.5,1802.4,3.2078]
[1745972318504,2.84209,1802.5,1802.4,3.2078]
[1745972319009,2.77353,1802.3,1801.9,1.10961]
[1745972319208,1.10961,1802.1,1802.0,1.10957]
[1745972320414,1.7328,1802.1,1802.0,1.10957]
[1745972320706,2.84233,1802.1,1802.0,1.56308172]
[1745972321012,1.10946,1802.3,1802.2,1.10942]
[1745972321213,1.10946,1802.3,1801.8,4.9046]
[1745972321214,1.10966,1801.9,1801.8,5.18707]
[1745972321715,1.10962,1802.0,1801.9,1.1096]
[1745972322009,3.50697,1802.1,1802.0,1.1096]
[1745972322215,1.1096,1802.0,1801.9,2.76571]
[1745972322512,1.10957,1802.1,1802.0,1.1096]
[1745972322714,4.74751,1802.2,1802.1,1.10953]
[1745972323114,1.10953,1802.1,1802.0,2.76566]
[1745972323715,2.73163,1802.1,1802.0,2.76566]
[1745972324118,2.73163,1802.1,1802.0,1.6561]
[1745972324412,2.73163,1802.1,1801.8,4.0774]
[1745972324622,2.73173,1802.0,1801.9,2.82441]
[1745972324918,3.53513,1802.0,1801.9,2.82441]
[1745972325805,3.53513,1802.0,1801.9,1.7148]
[1745972326210,1.10966,1801.9,1801.8,3.2078]
[1745972326509,1.10966,1801.9,1801.7,1.10978]
[1745972326510,1.10972,1801.8,1801.7,1.10978]
[1745972326710,1.10972,1801.8,1801.7,2.78848]
[1745972326916,2.73179,1801.9,1801.8,1.10972]
[1745972327106,2.73179,1801.9,1801.8,2.78842]
[1745972327818,1.6221,1801.9,1801.8,2.78842]
[1745972328117,2.73176,1801.9,1801.8,2.78842]
[1745972329120,1.96098,1802.1,1801.8,4.8865]
[1745972329320,1.96098,1802.1,1802.0,1.1096]
[1745972330008,1.10958,1802.1,1802.0,1.1096]
[1745972330215,1.10958,1802.1,1802.0,2.8239]
[1745972330414,9.69042,1802.2,1802.1,1.10953]
[1745972334716,9.68618761,1802.2,1802.1,1.10953]
[1745972334918,1.10953,1802.1,1802.0,2.82385]
[1745972335119,2.83073,1802.1,1802.0,2.82385]
[1745972337627,2.83073,1802.1,1802.0,1.10955]
[1745972338023,1.1096,1802.0,1801.9,3.6377]
[1745972338215,3.6257,1802.0,1801.9,3.6377]
[1745972338421,1.10966,1801.9,1801.8,4.31747]
[1745972338623,3.57656,1801.9,1801.8,4.31747]
[1745972338827,3.57656,1801.9,1801.8,6.73467]
[1745972339629,1.96332,1802.0,1801.9,1.10966]
[1745972339821,0.8537,1802.0,1801.9,2.71516]
[1745972340428,4.74326761,1802.2,1801.9,1.6055]
[1745972340629,4.74326761,1802.2,1802.1,1.10953]
[1745972341029,6.40866761,1802.2,1802.1,1.10953]
[1745972341232,1.10953,1802.1,1802.0,2.71504]
[1745972341431,2.77493,1802.1,1802.0,2.71504]
[1745972341623,2.77493,1802.1,1802.0,1.10954]
[1745972342432,1.10966,1802.0,1801.9,1.10963]
[1745972342623,3.53956,1802.0,1801.9,1.10963]
[1745972343135,1.10966,1801.9,1801.8,4.31752]
[1745972343324,3.48706,1801.9,1801.8,4.31752]
[1745972345935,3.48706,1801.9,1801.8,5.98002]
[1745972347534,0.7903,1801.9,1801.8,5.98002]
[1745972348233,2.69045,1802.0,1801.9,1.10966]
[1745972348433,2.69045,1802.0,1801.9,3.53046]
[1745972349435,1.91888,1802.1,1802.0,1.1096]
[1745972349831,1.91888,1802.1,1802.0,2.7299]
[1745972350031,0.8093,1802.1,1802.0,2.7299]
[1745972350335,6.72502,1802.2,1802.1,1.10953]
[1745972351126,5.6155,1802.2,1801.9,0.8005]
[1745972351330,1.1096,1802.0,1801.9,1.91012]
[1745972351531,1.10966,1801.9,1801.8,2.68658]
[1745972351737,1.95436,1801.9,1801.8,2.68658]
[1745972351938,1.95436,1801.9,1801.8,1.5769]
[1745972352137,1.95436,1801.9,1801.8,2.68662]
[1745972352336,2.75936,1801.9,1801.8,2.68662]
[1745972352827,1.95436,1801.9,1801.8,2.68662]
[1745972353030,1.7094,1802.0,1801.8,2.68662]
[1745972353235,2.81905,1802.0,1801.9,2.68656]
[1745972353535,2.75928,1802.1,1802.0,1.1096]
[1745972353733,2.75928,1802.1,1802.0,3.4775]
[1745972353938,1.95428,1802.1,1802.0,3.4775]
[1745972354545,4.31732,1802.2,1802.1,1.10953]
[1745972354745,4.31732,1802.2,1802.1,2.84473]
[1745972355747,6.03572,1802.2,1802.1,2.84473]
[1745972356044,6.03572,1802.2,1802.1,1.7352]
[1745972356245,1.1096,1802.0,1801.9,1.10962]
[1745972356444,1.1096,1802.0,1801.9,2.84482]
[1745972357138,1.10966,1801.9,1801.8,5.1633]
[1745972357338,1.10966,1801.9,1801.8,3.2078]
[1745972357538,1.10966,1801.9,1801.8,1.10972]
[1745972357738,1.10972,1801.8,1801.7,8.65806163]
[1745972357943,2.78242,1801.8,1801.7,8.65806163]
[1745972359044,3.59642,1801.8,1801.7,8.65806163]
[1745972361540,3.59642,1801.8,1801.7,2.76253]
[1745972361940,3.59642,1801.8,1801.7,1.10973]
[1745972362133,1.10978,1801.7,1801.6,6.03052]
[1745972362337,2.78148,1801.7,1801.6,6.03052]
[1745972362937,1.6717,1801.7,1801.6,6.03052]
[1745972363139,1.92377,1801.8,1801.7,1.10978]
[1745972363346,1.92377,1801.8,1801.7,3.64868]
[1745972363646,3.58127,1801.8,1801.7,3.64868]
[1745972368647,3.2078,1802.0,1801.7,2.5389]
[1745972368852,3.62438,1802.1,1802.0,1.1096]
[1745972369347,3.62438,1802.1,1802.0,1.9687]
[1745972370150,1.10966,1801.9,1801.8,4.31747]
[1745972370347,1.10972,1801.8,1801.7,3.67247]
[1745972371348,1.10972,1801.8,1801.7,3.67248]
[1745972371553,1.10972,1801.8,1801.7,2.81338]
[1745972374454,1.10972,1801.8,1801.7,1.7036]
[1745972374652,1.10972,1801.8,1801.7,2.81338]
[1745972374852,1.10978,1801.7,1801.6,4.31761]
[1745972375453,1.10978,1801.7,1801.6,5.89071]
[1745972376346,1.10984,1801.6,1801.5,1.92997]
[1745972376551,2.69604,1801.6,1801.5,1.92997]
[1745972376751,1.11012,1801.2,1801.1,1.11008]
[1745972376954,1.11012,1801.2,1801.1,3.48598]
[1745972377652,2.69632,1801.2,1801.1,3.48598]
[1745972379563,1.5862,1801.2,1801.1,3.48598]
[1745972379754,5.99158,1801.3,1801.2,1.11009]
[1745972379954,5.99158,1801.3,1801.2,2.72499]
[1745972380554,4.8815,1801.3,1801.2,2.72499]
[1745972380858,5.99153,1801.3,1801.2,2.72499]
[1745972381863,4.8815,1801.3,1801.2,2.72499]
[1745972383656,5.99153,1801.3,1801.2,2.72499]
[1745972384554,1.11016,1801.2,1801.1,1.11011]
[1745972384759,1.1102,1801.1,1801.0,1.11015]
[1745972384959,1.7442,1801.2,1801.0,1.11015]
[1745972384960,2.85434,1801.2,1801.1,1.11015]
[1745972385759,2.85434,1801.2,1801.1,1.93335]
[1745972390965,2.85434,1801.2,1801.1,3.65455]
[1745972393667,1.7442,1801.2,1801.1,3.65455]
[1745972394866,2.85429,1801.2,1801.1,3.65455]
[1745972395068,2.85429,1801.2,1801.1,1.11015]
[1745972401374,2.85429,1801.2,1801.1,2.71445]
[1745972403379,0.818,1801.3,1801.2,1.11009]
[1745972403578,1.10999,1801.4,1801.3,1.10999]
[1745972403579,1.11003,1801.4,1801.3,1.10999]
[1745972403777,3.48443,1801.4,1801.3,1.10999]
[1745972403979,1.11003,1801.3,1801.2,3.62367]
[1745972404177,5.88983,1801.3,1801.2,4.93807]
[1745972404475,5.88983,1801.3,1801.2,3.828]
[1745972405177,5.88983,1801.3,1801.1,1.11011]
[1745972405178,1.11009,1801.2,1801.1,1.11011]
[1745972405375,3.48429,1801.2,1801.1,1.11011]
[1745972407378,2.3742,1801.2,1801.1,1.11011]
[1745972407575,3.48429,1801.2,1801.1,1.11011]
[1745972408879,3.48429,1801.2,1801.1,2.72831]
[1745972410782,3.48429,1801.2,1801.1,3.54951]
[1745972413879,2.3742,1801.2,1801.1,3.54951]
[1745972414982,3.48429,1801.2,1801.1,3.54951]
[1745972422184,3.48429,1801.2,1801.1,2.72831]
[1745972422987,3.48429,1801.2,1801.1,1.11011]
[1745972425976,0.8024,1801.4,1801.3,1.11003]
[1745972426180,1.10995,1801.5,1801.4,1.1099]
[1745972426381,1.10995,1801.5,1801.4,2.6879]
[1745972426683,3.60339,1801.6,1801.5,1.1099]
[1745972426882,3.60339,1801.6,1801.5,3.5023]
[1745972428787,2.4935,1801.6,1801.5,3.5023]
[1745972428986,3.60334,1801.6,1801.5,3.5023]
[1745972429287,3.2078,1801.7,1801.6,1.10984]
[1745972429487,3.2078,1801.7,1801.6,2.70384]
[1745972430283,1.10971,1801.9,1801.8,1.10972]
[1745972430689,2.77261,1801.9,1801.8,1.10972]
[1745972431190,1.10972,1801.8,1801.7,2.73402]
[1745972431390,2.77262,1801.8,1801.7,2.73402]
[1745972432491,1.6629,1801.8,1801.7,2.73402]
[1745972433292,6.8438,1802.2,1801.9,1.10966]
[1745972433492,4.0567,1802.2,1802.1,1.10953]
[1745972433789,5.16617,1802.2,1802.1,1.10953]
[1745972434490,3.2078,1802.4,1802.3,1.10941]
[1745972435081,3.2078,1802.4,1802.3,2.68341]
[1745972435594,3.53036,1802.6,1802.5,1.10929]
[1745972437194,4.0274,1802.7,1802.6,1.10923]
[1745972437391,3.2078,1802.7,1802.6,1.10923]
[1745972437891,1.10911,1802.8,1802.7,1.10916]
[1745972438098,2.69641,1802.8,1802.7,1.10916]
[1745972438896,5.90421,1802.8,1802.7,1.10916]
[1745972439397,1.10925,1802.6,1802.5,1.10924]
[1745972439692,4.8552,1803.0,1802.5,6.40818]
[1745972439897,2.80357,1802.9,1802.8,1.10906]
[1745972440193,1.6945,1802.9,1802.8,1.10906]
[1745972440599,4.8552,1803.0,1802.9,1.10904]
[1745972440999,5.96418,1803.0,1802.9,1.10904]
[1745972441194,7.65868,1803.0,1802.9,1.10904]
[1745972441800,6.5497,1803.0,1802.9,1.10904]
[1745972442302,5.7301,1803.0,1802.9,1.10904]
[1745972442702,3.2078,1803.0,1802.9,1.10904]
[1745972443092,3.2078,1803.0,1802.9,2.70084]
[1745972444302,3.64586,1803.2,1803.1,1.10892]
[1745972444698,2.537,1803.2,1803.1,1.10892]
[1745972445198,0.8277,1803.2,1803.1,2.70072]
[1745972445400,2.7222,1803.3,1803.2,1.10886]
[1745972445600,2.7222,1803.3,1803.2,2.82956]
[1745972447001,1.6134,1803.3,1803.2,2.82956]
[1745972448595,1.6134,1803.3,1803.1,4.74287]
[1745972448900,1.6134,1803.3,1803.2,1.10886]
[1745972449207,2.72225,1803.3,1803.2,1.10886]
[1745972450001,2.72225,1803.3,1803.1,3.634]
[1745972450206,2.82216,1803.2,1803.1,4.74288]
[1745972450601,2.82216,1803.2,1803.1,1.10888]
[1745972450806,1.10892,1803.1,1803.0,4.74193]
[1745972451007,4.46512,1803.1,1803.0,4.74193]
[1745972453607,3.3562,1803.1,1803.0,4.74193]
[1745972454109,3.3562,1803.1,1803.0,6.46063]
[1745972454308,4.46512,1803.1,1803.0,6.46063]
[1745972455411,1.10884,1803.3,1803.1,1.10892]
[1745972455605,1.10884,1803.3,1803.2,1.1088]
[1745972455906,2.71514,1803.3,1803.2,1.1088]
[1745972457714,2.71514,1803.3,1803.2,2.7637]
[1745972458915,1.6063,1803.3,1803.2,2.7637]
[1745972459214,1.6855,1803.5,1803.4,1.10873]
[1745972459409,2.79417,1803.5,1803.4,1.10873]
[1745972460114,1.6855,1803.5,1803.4,4.05846411]
[1745972460417,2.79417,1803.5,1803.4,4.05846411]
[1745972460717,4.43357,1803.5,1803.4,4.05846411]
[1745972461106,4.43357,1803.5,1803.4,3.61413]
[1745972461811,3.3249,1803.5,1803.4,3.61413]
[1745972462012,2.4962,1803.5,1803.4,3.61413]
[1745972462414,4.0115,1803.8,1803.7,1.10855]
[1745972462610,5.12004,1803.8,1803.7,1.10855]
[1745972462811,4.0115,1803.8,1803.7,1.10855]
[1745972463818,5.6484,1803.8,1803.7,2.68095]
[1745972464820,6.75689,1803.8,1803.7,2.68095]
[1745972465316,6.75689,1803.8,1803.7,1.10855]
[1745972465917,5.6484,1803.8,1803.7,1.10855]
[1745972467320,5.6484,1803.8,1803.7,2.69785]
[1745972467518,4.8447,1803.8,1803.7,2.69785]
[1745972467718,3.2078,1803.8,1803.7,3.52905]
[1745972468418,2.5173,1803.9,1803.8,1.10849]
[1745972468719,2.5173,1803.9,1803.8,2.69779]
[1745972469119,4.31602,1804.3,1804.2,1.10824]
[1745972469422,6.01302,1804.3,1804.2,1.10824]
[1745972470524,4.9048,1804.3,1804.2,1.10824]
[1745972470724,1.10805,1804.6,1804.5,1.10806]
[1745972470922,3.4058,1804.6,1804.5,1.10806]
[1745972471127,4.5138,1804.6,1804.5,1.10806]
[1745972471924,3.2078,1804.6,1804.5,1.10806]
[1745972472126,2.85025,1804.7,1804.6,1.108]
[1745972473318,1.108,1804.6,1804.5,2.68341]
[1745972473527,2.7612,1804.6,1804.5,2.68341]
[1745972475521,1.10806,1804.5,1804.4,5.89553163]
[1745972475726,3.54956,1804.5,1804.4,9.52453163]
[1745972475926,3.54956,1804.5,1804.4,3.629]
[1745972476318,1.10806,1804.5,1804.4,4.73712]
[1745972476516,1.10806,1804.5,1804.4,7.16442]
[1745972476720,5.98655,1804.6,1804.5,1.10806]
[1745972476920,5.98655,1804.6,1804.5,2.70656]
[1745972477123,6.80285,1804.6,1804.5,2.70656]
[1745972483625,1.10818,1804.3,1804.2,10.63174163]
[1745972483831,1.1083,1804.2,1804.1,4.73626]
[1745972484033,4.4086,1804.2,1804.1,4.73626]
[1745972484232,3.3003,1804.2,1804.1,4.73626]
[1745972484733,3.2078,1804.6,1804.5,1.10801]
[1745972484933,2.88867542,1804.6,1804.5,1.10801]
[1745972485135,4.3157,1804.8,1804.7,1.10794]
[1745972485334,5.9176,1804.8,1804.7,1.10794]
[1745972486034,1.6019,1804.8,1804.7,1.10794]
[1745972486333,1.6409,1804.9,1804.8,1.10787]
[1745972486531,0.829,1804.9,1804.8,1.10787]
[1745972487035,0.829,1804.9,1804.8,1.97297]
[1745972487532,2.4309,1804.9,1804.8,1.97297]
[1745972488034,2.4309,1804.9,1804.8,1.96772969]
[1745972488234,0.829,1804.9,1804.8,1.96772969]
[1745972488426,0.829,1804.9,1804.8,2.80442969]
[1745972490837,4.0152,1805.2,1805.1,1.10769]
[1745972491039,2.4666,1805.3,1805.2,1.10763]
[1745972491232,4.31536,1805.4,1805.3,1.10757]
[1745972491233,3.2078,1805.4,1805.3,1.10757]
[1745972491423,3.2078,1805.4,1805.3,3.63607]
[1745972493338,1.10745,1805.5,1805.4,1.10751]
[1745972493528,2.70672,1805.6,1805.5,1.10744]
[1745972494229,1.5993,1805.6,1805.3,0.8274]
[1745972494433,1.6083,1805.5,1805.4,1.10745]
[1745972495132,2.71574,1805.5,1805.4,1.10745]
[1745972496238,1.10741,1805.6,1805.5,1.10738]
[1745972496432,2.71571,1805.6,1805.5,1.10738]
[1745972496633,12.58463,1805.6,1805.2,3.64506692]
[1745972496838,1.10754,1805.4,1805.3,1.10751]
[1745972497239,1.10746,1805.5,1805.4,1.10751]
[1745972497444,6.77043,1805.6,1805.5,1.10744]
[1745972499344,1.10744,1805.5,1805.4,3.63087]
[1745972499537,2.75754,1805.5,1805.4,3.63087]
[1745972499836,4.31523,1805.6,1805.5,1.10744]
[1745972500042,5.96533,1805.6,1805.5,2.83734]
[1745972500248,1.1075,1805.5,1805.4,1.10746]
[1745972500436,2.7198,1805.5,1805.4,1.10746]
[1745972502042,1.10751,1805.4,1805.3,10.62705163]
[1745972502250,3.55201,1805.4,1805.3,7.00305163]
[1745972502945,3.55201,1805.4,1805.3,5.89553163]
[1745972503244,1.10763,1805.2,1805.1,4.73168]
[1745972503442,1.10763,1805.2,1805.1,1.10768]
[1745972503838,2.71903,1805.2,1805.1,1.10768]
[1745972506351,1.6114,1805.2,1805.1,1.10768]
[1745972506541,1.6114,1805.2,1805.1,2.78488]
[1745972506740,2.71903,1805.2,1805.1,2.78488]
[1745972510457,1.6114,1805.2,1805.1,2.78488]
[1745972511755,2.71903,1805.2,1805.1,2.78488]
[1745972512856,1.10775,1805.1,1805.0,1.1077]
[1745972513057,3.62975,1805.1,1805.0,4.7317]
[1745972513957,2.522,1805.1,1805.0,4.7317]
[1745972514255,2.522,1805.1,1805.0,6.3226]
[1745972515249,1.10767,1805.2,1805.1,1.10769]
[1745972515450,2.77737,1805.2,1805.1,1.10769]
[1745972515659,2.77737,1805.2,1805.1,2.78689]
[1745972515855,1.10767,1805.2,1805.1,3.65329]
[1745972516452,2.77737,1805.2,1805.1,3.65329]
[1745972518356,1.6697,1805.2,1805.1,3.65329]
[1745972519567,0.8671,1805.3,1805.2,1.10763]
[1745972519856,1.97467,1805.3,1805.2,2.71523]
[1745972520258,4.54707,1805.3,1805.2,2.71523]
[1745972520854,1.10763,1805.2,1805.1,9.51753163]
[1745972521152,10.97165684,1806.3,1805.2,3.2078]
[1745972521351,10.97165684,1806.3,1805.9,3.2078]
[1745972521352,1.7406,1806.1,1805.9,3.2078]
[1745972521558,2.84772,1806.1,1805.9,4.315]
[1745972521959,10.85588112,1806.0,1805.9,4.315]
[1745972523561,10.85588112,1806.0,1805.8,6.31694]
[1745972523762,2.5169,1805.9,1805.8,4.72924]
[1745972524651,2.5169,1805.9,1805.8,1.10724]
[1745972525656,1.6986,1805.9,1805.8,2.81574]
[1745972526054,0.80343056,1806.2,1805.8,9.47662]
[1745972526255,0.01200095,1806.5,1806.4,1.10689]
[1745972526559,0.01200095,1806.5,1806.4,4.31469]
[1745972526759,1.62870095,1806.5,1806.4,6.02319]
[1745972528059,1.62870095,1806.5,1806.4,4.31469]
[1745972528263,2.73553095,1806.5,1806.4,4.31469]
[1745972528562,1.62870095,1806.5,1806.4,4.31469]
[1745972528757,9.5e-07,1806.5,1806.4,10.98379]
[1745972528951,10.26377112,1807.1,1807.0,1.10653]
[1745972529157,9.15728112,1807.1,1807.0,1.10653]
[1745972529359,10.26374112,1807.1,1807.0,4.31433]
[1745972529965,10.26374112,1807.1,1807.0,3.2078]
[1745972530456,1.10653,1807.0,1806.9,1.10657]
[1745972531068,2.76632,1807.0,1806.7,3.2078]
[1745972531363,1.10671,1806.7,1806.6,3.2078]
[1745972534470,1.10689,1806.4,1806.3,3.62]
[1745972534969,1.10695,1806.3,1806.2,7.93477]
[1745972535170,1.96535,1806.3,1806.2,7.93477]
[1745972535872,1.96535,1806.3,1806.2,3.2078]
[1745972536870,1.96535,1806.3,1806.2,4.31482]
[1745972537568,1.96535,1806.3,1806.2,3.2078]
[1745972537769,1.96535,1806.3,1806.2,4.31482]
[1745972537966,1.96535,1806.3,1806.2,1.10702]
[1745972538765,1.96535,1806.3,1806.2,1.6016]
[1745972539166,0.8584,1806.3,1806.0,12.72333163]
[1745972539361,1.10708,1806.1,1806.0,5.89553163]
[1745972539567,1.1072,1805.9,1805.8,3.2078]
[1745972539972,1.10726,1805.8,1805.7,3.62]
[1745972540172,1.10732,1805.7,1805.6,10.21067163]
[1745972540672,1.10732,1805.7,1805.6,11.82887163]
[1745972542170,1.10732,1805.7,1805.6,4.826]
[1745972542373,1.10732,1805.7,1805.6,3.2078]
[1745972546978,1.10744,1805.5,1805.4,3.2078]
[1745972547677,3.59884,1805.5,1805.4,4.31531]
[1745972547875,1.10744,1805.5,1805.4,5.89461]
[1745972548076,0.8537,1805.8,1805.5,2.76862]
[1745972548375,1.96099,1805.8,1805.7,4.31512]
[1745972548775,1.6377,1805.9,1805.8,1.10726]
[1745972548776,2.74493,1805.9,1805.8,1.10726]
[1745972548977,1.10706,1806.2,1806.1,1.10708]
[1745972549577,1.10706,1806.2,1806.1,3.49718]
[1745972551377,1.10706,1806.2,1806.1,2.3901]
[1745972551577,1.10706,1806.2,1806.1,3.49718]
[1745972553486,1.10706,1806.2,1806.1,1.5755]
[1745972553984,1.10708,1806.1,1806.0,4.31494]
[1745972555181,1.10708,1806.1,1806.0,3.2078]
[1745972555382,2.84298,1806.1,1806.0,3.2078]
[1745972556288,1.1072,1805.9,1805.8,1.5899]
[1745972556787,1.10726,1805.8,1805.7,7.00280163]
[1745972557287,1.10726,1805.8,1805.7,8.59270163]
[1745972557983,1.10726,1805.8,1805.7,2.69717]
[1745972558389,1.10726,1805.8,1805.7,1.5899]
[1745972558790,1.10732,1805.7,1805.6,4.31518]
[1745972558990,2.77062,1805.7,1805.6,4.31518]
[1745972559288,2.77062,1805.7,1805.6,5.93888]
[1745972561489,1.10729,1805.8,1805.7,1.10726]
[1745972561688,1.10732,1805.7,1805.6,4.31514]
[1745972561996,1.10732,1805.7,1805.6,3.2078]
[1745972562286,1.97662,1805.7,1805.6,3.2078]
[1745972563493,1.10738,1805.6,1805.5,1.1074]
[1745972563695,1.10744,1805.5,1805.4,4.31528]
[1745972564193,3.61183,1805.6,1805.5,1.10744]
[1745972565286,1.10743,1805.6,1805.5,1.10744]
[1745972566184,2.78748,1805.7,1805.6,1.10738]
[1745972566793,1.10744,1805.6,1805.5,1.10739]
[1745972567383,2.81114,1805.6,1805.5,1.10739]
[1745972567588,1.10744,1805.5,1805.4,4.31527]
[1745972567791,3.61984,1805.5,1805.4,4.31527]
[1745972569091,3.61984,1805.5,1805.4,3.2078]
[1745972569296,4.47614,1805.5,1805.4,3.2078]
[1745972569591,1.10757,1805.3,1805.2,4.3154]
[1745972571894,0.13436,1805.4,1805.3,1.10757]
[1745972572094,1.10728,1805.8,1805.7,1.10729]
[1745972572295,2.76785,1806.0,1805.5,1.7157]
[1745972572489,1.10731,1805.8,1805.6,1.10733]
[1745972572692,1.10731,1805.8,1805.7,1.10732]
[1745972573397,1.10731,1805.8,1805.5,1.7157]
[1745972573599,3.2078,1805.9,1805.5,1.7157]
[1745972574199,1.10728,1805.8,1805.7,1.10729]
[1745972576005,3.2078,1805.9,1805.5,1.7157]
[1745972576194,1.10738,1805.6,1805.5,1.10741]
[1745972576495,2.4674,1805.7,1805.4,4.8213]
[1745972576700,1.10744,1805.5,1805.4,5.92875]
[1745972576994,1.10744,1805.5,1805.4,1.6135]
[1745972577202,1.10755,1805.4,1805.3,1.10756]
[1745972577400,1.10757,1805.3,1805.2,6.7209]
[1745972577699,1.10757,1805.3,1805.2,4.3154]
[1745972578295,1.10763,1805.2,1805.1,2.72116]
[1745972578595,1.10763,1805.2,1805.1,2.72113]
[1745972578796,1.6504,1805.4,1805.2,1.1076]
[1745972578797,1.1076,1805.3,1805.2,1.1076]
[1745972578997,1.1076,1805.3,1805.2,2.7211]
[1745972579499,1.1076,1805.3,1805.2,1.6135]
[1745972579803,1.1076,1805.3,1805.2,2.72113]
[1745972581501,1.10769,1805.1,1805.0,3.2078]
[1745972581701,1.10769,1805.1,1805.0,1.5843]
[1745972582007,1.10781,1804.9,1804.8,5.15574]
[1745972582209,1.10781,1804.9,1804.8,6.80554]
[1745972582395,2.7293,1805.0,1804.9,1.10781]
[1745972582599,0.822,1805.2,1804.9,1.6498]
[1745972582897,3.55116,1805.2,1805.1,1.10769]
[1745972584209,0.822,1805.2,1805.1,1.10769]
[1745972584509,3.2078,1805.3,1805.2,1.10763]
[1745972584708,1.10756,1805.4,1805.3,1.10757]
[1745972585106,1.10756,1805.4,1805.3,2.75737]